Cogmind - Beta 16.1 @@@ ROGUE MODE // 2026.02.23 @ 20:25:09 Player: Scared Dad Result: Destroyed by D-53 Grenadier with Mini Grenade Launcher Performance ------------- Evolutions (0) 0 Regions Visited (2) 400 Robots Destroyed (16) 80 Value Destroyed (336) 336 Prototype IDs (2) 40 Alien Tech Used (0) 0 Bonus (0) 0 TOTAL SCORE: 856 Bonus ------- None Cogmind --------- Core Integrity 0/250 Matter 293/300 Energy 250/250 System Corruption 1% Temperature Cool (82) Movement Treading (160) Location -10/Mines Parts ------- > --- POWER (1) -------- Ion Engine > --- PROPULSION (2) --- Light Treads > --- UTILITY (2) ------ Medium Storage Unit Targeting Computer > --- WEAPON (2) ------- (None) > --- INVENTORY (10) --- Flight Unit Improved Heat Sink Visual Processing Unit Sensor Array Light Armor Plating Mining Laser Peak State ------------ > --- POWER ------------ Ion Engine > --- PROPULSION ------- Light Treads Light Treads > --- UTILITY ---------- Medium Storage Unit Targeting Computer > --- WEAPON ----------- Light Assault Rifle Plasma Flamer > --- INVENTORY -------- Flight Unit Improved Heat Sink Visual Processing Unit Sensor Array Light Armor Plating Assault Rifle Mining Laser [Rating: 12] Favorites ----------- Power Ion Engine Engine Ion Engine Propulsion Wheel Treads Light Treads Wheel Wheel Utility Targeting Computer Storage Medium Storage Unit Processor Targeting Computer Weapon Assault Rifle Ballistic Gun Assault Rifle Special Weapon Plasma Flamer Build | -11 -10 -10 ------- Run | Yrd Mat Min Slots Evolved . | . . . Power . | . . . Propulsion . | . . . Utility . | . . . Weapon . | . . . Parts Attached 14 | 6 3 5 Power 3 | 1 1 1 Engine 3 | 1 1 1 Core . | . . . Reactor . | . . . Propulsion 4 | 2 . 2 Treads 2 | . . 2 Leg . | . . . Wheel 2 | 2 . . Hover . | . . . Flight . | . . . Utility 3 | 1 2 . Device . | . . . Storage 2 | 1 1 . Processor 1 | . 1 . Hackware . | . . . Protection . | . . . Artifact . | . . . Weapon 4 | 2 . 2 Energy Gun . | . . . Energy Cannon . | . . . Ballistic Gun 3 | 2 . 1 Ballistic Cannon . | . . . Launcher . | . . . Special Weapon 1 | . . 1 Impact Weapon . | . . . Slashing Weapon . | . . . Piercing Weapon . | . . . Special Melee Weapon . | . . . Unidentified Prototypes . | . . . Parts Lost 5 | . . 5 Power . | . . . Propulsion 2 | . . 2 Utility . | . . . Weapon 3 | . . 3 Highest Loss Streak 4 | . . 4 To Critical Strikes . | . . . Average Backups 7 | 3 7 6 Power . | . 1 . Propulsion 2 | 2 3 1 Utility 2 | . 1 4 Weapon 1 | . 1 1 Tool/Special . | . . . Unused Backups 7 | . 2 5 Power . | . . . Propulsion 3 | . 2 1 Utility 3 | . . 3 Weapon 1 | . . 1 Tool/Special . | . . . Average Slot Usage (%) 95 | . 92 100 Engine 14 | . 14 14 Treads 10 | . . 26 Wheel 17 | . 28 2 Storage 14 | . 14 14 Processor 10 | . 7 14 Ballistic Gun 26 | . 27 26 Peak Build Rating 12 | 6 8 12 Average Rating 7 | 4 6 8 On Entrance 4 | . 6 8 Avg Prop Armor Cover (%) . | . . . Naked Turns . | . . . Heaviest Build 19 | 14 19 19 Greatest Support 40 | 20 20 40 Greatest Overweight (x) 1 | 1 . . Average Overweight (x) . | . . . Largest Inventory Capacity 10 | 8 10 10 Average Capacity 9 | 7 8 10 Most Carried 10 | 6 10 10 Average Carried 7 | 3 7 6 Final Capacity 10 | 8 10 10 Final Carried 10 | 6 10 6 Class Distribution -------------------- 100% | Mutant Dominant Class ---------------- Mutant | -10/Materials Mutant | -10/Mines Resources | -11 -10 -10 ----------- Run | Yrd Mat Min Matter Collected 601 | 221 229 151 Remotely . | . . . Salvage Created 447 | . 298 149 Parts 25 | . 17 8 Haulers Intercepted . | . . . Recyclers Shooed . | . . . Parts Field Recycled . | . . . Retrieved Matter . | . . . Parts Self-Destructed . | . . . Prevented . | . . . Parts Restored . | . . . Kills | -11 -10 -10 ------- Run | Yrd Mat Min Combat Hostiles Destroyed 15 | . 10 5 Guns 15 | . 10 5 Classes Destroyed 3 | . 3 . Watcher 1 | . 1 . Swarmer 9 | . 6 3 Grunt 6 | . 4 2 Best Kill Streak 3 | . 3 2 Combat Bots Only 3 | . 3 2 Max Kills in Single Turn 2 | . 2 1 Gunslinging 1 | . 1 . Exploded . | . . . Melee . | . . . Uniques/NPCs Destroyed . | . . . Combat | -11 -10 -10 -------- Run | Yrd Mat Min Hostile Shots Fired 97 | . 40 57 Missed 21 | . 12 9 Hits 76 | . 28 48 Melee 2 | . . 2 Projectile 74 | . 28 46 AOE 9 | . . 9 Critical Strikes 1 | . . 1 Damage Taken 1191 | . 278 913 Core 257 | . 64 193 Absorbed by Shields . | . . . Regen/Repaired (Parts) 71 | . 71 . Core Remaining (%) 100 | 100 . . Volleys Fired 53 | . 25 28 Largest 2 | . 2 2 Hottest 120 | . 40 120 Shots Fired 106 | . 50 56 Gun 102 | . 50 52 Cannon . | . . . Launcher . | . . . Special 4 | . . 4 Kinetic 102 | . 50 52 Thermal 4 | . . 4 Explosive . | . . . Electromagnetic . | . . . Robot Hit Streak 9 | . 8 9 Robot Miss Streak 3 | . 2 3 Penetration Max . | . . . Secondary Targets 2 | . 1 1 Max Gunslinging Chain 1 | . 1 1 Shots Hit Robots 70 | . 36 34 Core Hits 30 | . 17 13 Critical Kills . | . . . Critical Parts Destroyed . | . . . Critical Strikes . | . . . Melee Attacks . | . . . Impact . | . . . Slashing . | . . . Piercing . | . . . Sneak Attacks . | . . . Combat Hostiles . | . . . Follow-up Attacks . | . . . Damage Inflicted 866 | . 461 405 Guns 814 | . 461 353 Cannons . | . . . Explosions . | . . . Melee . | . . . Ramming 2 | . . 2 Kinetic 814 | . 461 353 Thermal 50 | . . 50 Explosive . | . . . Electromagnetic . | . . . Impact . | . . . Slashing . | . . . Piercing . | . . . Highest Corruption 1 | . 1 1 Average Corruption 1 | . 1 1 Corruption Purged . | . . . Corruption Blocked . | . . . Effects 3 | . 1 2 Message Errors 2 | . 1 1 Data Loss (minor) 1 | . . 1 Overload Shots . | . . . Overflow Damage . | . . . Projectiles . | . . . Explosions . | . . . Melee . | . . . Knockbacks . | . . . Impact . | . . . Kinetic . | . . . Secondary . | . . . Self-Inflicted Damage . | . . . Shots . | . . . Rammed 1 | . . 1 Targets Rammed 1 | . . 1 Kicked . | . . . Crushed . | . . . Highest Temperature 160 | . 2 160 Average Temperature 40 | . 2 44 Received Heat Transfer 243 | . 105 138 Siege Activations . | . . . Martial Activations . | . . . Shielding Activations . | . . . Robots Disrupted . | . . . Combat Hostiles . | . . . Robots Corrupted . | . . . Combat Hostiles . | . . . Parts Fried . | . . . Impact Corruptions . | . . . Robots Melted . | . . . Combat Hostiles . | . . . Parts Melted . | . . . Heat Transferred 320 | . . 320 Parts Sabotaged . | . . . Parts Stolen . | . . . Parts Stripped . | . . . Power Chain Reactions . | . . . Alert | -11 -10 -10 ------- Run | Yrd Mat Min Maximum Alert Level . | . . . Low Security (%) 100 | 100 100 100 Level 1 . | . . . Level 2 . | . . . Level 3 . | . . . Level 4 . | . . . Level 5 . | . . . High Security . | . . . Max Security . | . . . Peak Influence 110 | . 110 60 Initial 7 | . . 7 Average 27 | . 41 12 Influence Increases 412 | . 292 120 Destroy 0b10 Robot/C 300 | . 200 100 Destroy 0b10 Robot/NC 5 | . 5 . Destroy Leader 62 | . 42 20 Trap Triggered on 0b10 10 | . 10 . Successful Hack 35 | . 35 . Influence Decreases 412 | . 272 140 Entered New Map 13 | . . 13 Time Decay 392 | . 272 120 Lost Part 7 | . . 7 Squads Dispatched 2 | . 2 . Investigation 1 | . 1 . Extermination . | . . . Reinforcement 1 | . 1 . Assault . | . . . Garrison . | . . . Intercept . | . . . Searches Triggered . | . . . Construction Impeded . | . . . Haulers Reinforced . | . . . Active Scanning Responses . | . . . Cargo Convoy Interrupts . | . . . Stealth | -11 -10 -10 --------- Run | Yrd Mat Min Distress Signals . | . . . Communications Jammed . | . . . Distress Signals . | . . . Times Spotted 47 | . 21 26 Peak Tracking Total 12 | . 4 12 Tactical Retreats . | . . . Traps | -11 -10 -10 ------- Run | Yrd Mat Min Traps Triggered 1 | . 1 . Indirectly . | . . . Trap Hack Attempts . | . . . Triggered . | . . . Disarmed . | . . . Reprogrammed 1 | . 1 . Reused 1 | . 1 . Traps Extracted . | . . . Installed . | . . . Triggered 1 | . 1 . Machines | -11 -10 -10 ---------- Run | Yrd Mat Min Machines Disabled . | . . . Max in Single Turn . | . . . Machines Repaired . | . . . Machines Dismantled . | . . . Machines Sabotaged . | . . . Overloaded Fab Kills . | . . . Hacking | -11 -10 -10 --------- Run | Yrd Mat Min Machines Accessed 10 | . 10 . Terminals 7 | . 7 . Fabricators . | . . . Repair Stations 1 | . 1 . Recycling Units 2 | . 2 . Scanalyzers . | . . . Garrison Access . | . . . Total Hacks 30 | . 30 . Successful 18 | . 18 . Failed 12 | . 12 . Catastrophic 4 | . 4 . Database Lockouts . | . . . Manual . | . . . Terminals 25 | . 25 . Fabricators . | . . . Repair Stations 2 | . 2 . Recycling Units 3 | . 3 . Scanalyzers . | . . . Garrison Access . | . . . Terminal Hacks 15 | . 15 . Record 2 | . 2 . Prototype ID Bank 1 | . 1 . Branch Access Points 1 | . 1 . Emergency Access Points 1 | . 1 . Locate Traps 4 | . 4 . Reprogram Traps 1 | . 1 . Dispatch Records 1 | . 1 . Hauler Manifests 1 | . 1 . Zone Layout 3 | . 3 . Fabricator Hacks . | . . . Repair Station Hacks 2 | . 2 . Scan Component 1 | . 1 . Repair 1 | . 1 . Recycling Unit Hacks 1 | . 1 . Retrieve Components 1 | . 1 . Scanalyzer . | . . . Garrison Access Hacks . | . . . Unauthorized Hacks . | . . . Terminals . | . . . Fabricators . | . . . Repair Stations . | . . . Recycling Units . | . . . Scanalyzers . | . . . Garrison Access . | . . . Data Cores Recovered . | . . . Used . | . . . Hacking Detections 8 | . 8 . Full Trace Events 2 | . 2 . Feedback Events . | . . . Feedback Blocked . | . . . Robot Schematics Acquired . | . . . Robots Built . | . . . Authchips . | . . . Time . | . . . Total Robot Build Rating . | . . . Part Schematics Acquired . | . . . Parts Built . | . . . Authchips . | . . . Time . | . . . Total Part Build Rating . | . . . Part Studies Acquired . | . . . Parts Repaired 1 | . 1 . Time 26 | . 26 . Parts Recycled . | . . . Recycled Matter . | . . . Retrieved Matter . | . . . Retrieved Components 5 | . 5 . Parts Scanalyzed . | . . . Part Schematics Acquired . | . . . Parts Damaged . | . . . Bothacking | -11 -10 -10 ------------ Run | Yrd Mat Min Used RIF Installer . | . . . Robots Hacked . | . . . Non-combat . | . . . Combat . | . . . Robot Hacks Applied . | . . . Relay Couplers Released . | . . . Fabnet Peak Effective % . | . . . Robots Rewired . | . . . Allies Hacked . | . . . Hacks Repelled . | . . . Allies | -11 -10 -10 -------- Run | Yrd Mat Min Total Allies . | . . . Largest Group . | . . . Highest-Rated Group . | . . . Highest-Rated Ally . | . . . Total Orders . | . . . Ally Attacks . | . . . Total Damage . | . . . Kills . | . . . Allies Corrupted . | . . . Allies Melted . | . . . Intel | -11 -10 -10 ------- Run | Yrd Mat Min Active Infowar (turns) . | . . . Robot Analysis Total . | . . . Derelict Logs Recovered 1 | . . 1 Drone Launches . | . . . Drone Recoveries . | . . . Exploration | -11 -10 -10 ------------- Run | Yrd Mat Min Turns Passed 1214 | 58 677 479 Spaces Moved 949 | 52 660 237 Core 8 | 8 . . Treads 237 | . . 237 Legs . | . . . Wheels 704 | 44 660 . Hover . | . . . Flight . | . . . Fastest Speed 50 | 50 80 160 Average Speed 99 | 76 80 160 Slowest Speed 160 | 95 80 160 Overloaded Moves . | . . . Propulsion Burnouts . | . . . Robots Hopped . | . . . Potential Cave-ins . | . . . Cave-ins Triggered . | . . . Exploration Rate (%) 45 | 3 94 40 Regions Visited 2 Branch Regions 1 Pre-discovered Areas . | . . . Known Exits Taken 1 | . 1 . Unknown Exits Taken 1 | 1 . . Scrap Searched 1 | . . 1 Spaces Dug . | . . . Terrain Destroyed . | . . . Melee . | . . . Projectile . | . . . AOE . | . . . Terrain Rammed . | . . . Walls Destroyed . | . . . Machines Disabled . | . . . Actions | -11 -10 -10 --------- Run | Yrd Mat Min Total 1109 | 69 760 280 Wait 58 | . 54 4 Move 947 | 51 659 237 Hop . | . . . Pick Up 25 | 12 12 1 Fast Attach . | . . . Attach 10 | 6 2 2 Detach . | . . . Swap 6 | . 2 4 Drop 9 | . 6 3 Fire 53 | . 25 28 Melee . | . . . Ram . | . . . Kick . | . . . Crush 1 | . . 1 Escape Stasis . | . . . Rewire . | . . . Trap . | . . . Miscellaneous . | . . . Route ------- -11/Scrapyard -10/Materials (discovered 4 exits: [*Mat x3] / *Min) -10/Mines History --------- Turn | Location | Event 15 | -11/Scrapyard | Discovered new exit (range 15) 59 | -11/Scrapyard | Entered Materials 98 | -10/Materials | Identified exit to Mines 151 | -10/Materials | Discovered new exit (range 3) 256 | -10/Materials | Discovered new exit (range 19) 310 | -10/Materials | Build established: Mutant 485 | -10/Materials | Discovered new exit (range 4) 632 | -10/Materials | Repaired Assault Rifle 736 | -10/Materials | Entered Mines 901 | -10/Mines | Learned 2 Materials zone layouts 1004 | -10/Mines | A weapon hastily lodged in a ceiling crevice suddenly fell to the ground 1131 | -10/Mines | Assembled infested the area 1136 | -10/Mines | Assisted by a Guerilla fighting off Assembled 1141 | -10/Mines | Found a hidden stash of uninstalled traps 1160 | -10/Mines | Core integrity fell below 50% 1205 | -10/Mines | Core integrity fell below 20% 1215 | -10/Mines | Destroyed by D-53 Grenadier with Mini Grenade Launcher Last Messages --------------- 01166_ as-83092 destroyed. 01168_ The unstable cave ceiling collapses. 01169_ as-14568 destroyed. 01169_ as-94288 destroyed. 01169_ as-37022 destroyed. 01169_ as-13928 destroyed. 01170_ The unstable cave ceiling collapses. 01175_ as-35563 destroyed. 01178_ D-53 Grenadier suffers critical hit (Burn). 01178_ as-81752 destroyed. 01181_ as-72653 destroyed. 01181_ as-25923 destroyed. 01181_ Slammed into K-01 Serf. 01198_ D-53 Grenadier destroyed. 01200_ Lgt. Assault Rifle destroyed. 01204_ The unstable cave ceiling collapses. 01211_ Plasma Flamer destroyed. 01211_ Lgt. Treads destroyed. 01211_ Assault Rifle destroyed. Map ----- +----------------------------------------------------+ | ?????????????????????????????????? % ##???????? | | ?????????????????????????????????? #???????? | | ?????????????????????????????????? ##???????? | | ?????????????????????????????????? #???????? | | ####??##########??????????####### #???????? | | # #??# #?????????## # % #???????? | | ##?# #????????## ##??????? | | #?# """ #????????# #??????? | | #?# """ #????????# #??????? | | # ##?# """ #???????## #???????? | | ## #??# #???????# & #????????? | | ?# #??## #######??###??# & & ##???????? | | ?# ##### #?## ### ##?# && # #???????? | | ?# #?# #?## ## ##???????? | | ?####### #?# #??## ### % #????????? | | ###????# #?# ##???# #?##! #????????? | | ##???# #?##[!## ##??### ##??# ##????????? | | ##### #??#%##?####### ##???# "#?????????? | | *#??#!#????# #####????#"%#?????????? | | #### #### #????# # ###???? " ?????????? | | #####??#= #???## ##??? ?????????? | | ???????# ######???# #??? ????????? | | ???????#=#????????# #???# ????????? | | ???????# #???????## ######### ???????? | | ???????# #???????# d #????#???????? | | ???????# #??????## @ ### #????????????? | | ######## ######## #????????????????? | | # ###????????????????? | | # ## #####??????????????????? | | # ############# ###??????????????????????? | | #????????# #???????????????????????? | | "" #????????## #??????????????????????? | | "" #??####???# ### ????????????????? | | "" #?## ##??# #?## ### ####????????????????? | | #?# #### #???####???#???????????????????? | | "" #?# ## ##?????????????????????????????? | | "" #??# #?????????????????????????????? | | "" #??### #?????????????????????????????? | | #????### #?????????????????????????????? | | "" #??????## #?????????????????????????????? | | "" #???????## % #?????????????????????????????? | | "" #???????## #### """??????????????????????? | | #####???# """??????????????????????? | | ####### #### #### """??????????????????????? | | ?????# ## ##?????????????????????????????? | | ?????# ###??????????????????????????????? | | ?????## ##????????????????????????????????? | | ??????## ##?????????????????????????????????? | | ???????## ##??????????????????????????????????? | | ????????######???????????????????????????????????? | +----------------------------------------------------+ Best States ------------- Heat Dissipation 25 Energy Generation 10 Energy Capacity 250 Matter Stores 300 Matter Capacity 300 Sight Range 16 Terrain Scan Density 10 Evasion (%) 50 Targeting Accuracy 5 Recoil Reduction 2 Item Schematics ----------------- None Robot Schematics ------------------ None Fabricated ------------ Nothing Repaired ---------- Assault Rifle | 29% | -10/Materials Studied --------- None Alien Tech Used ----------------- None Achievements -------------- None Challenges ------------ None Game ------ Seed OpticalScanBeam Manual? 0 Play Time 00:14:19 Cumulative 113.4 hours Start 2026.02.23 @ 20:14:11 End 2026.02.23 @ 20:25:09 Sessions 1 Manual Loads 0 Difficulty Rogue Special Mode None Game No. 137 Rogue 137 Adventurer 0 Explorer 0 Win Type - Total 0 Types 0/0/0/0/0/0/0/0/0/0 Lore% 49 Gallery% 46 Achievement% 31 Wizard Run 0 Options --------- Layout 2 ASCII 0 Keyboard 0 Movement Numpad Keybinds 0 Fullscreen 1 Font 24/Smallcaps Map View 50x44 Zoom Use 0% Tactical HUD 1 Map Filters NONE Filters NONE Steam 1 RUN: 449f9dd7-42f8-4d9b-b40a-0c3a5d9fb67d